[Event "18th Charleroi Open-A 2019"]
[Site "Charleroi"]
[Date "2019.07.29"]
[Round "3.2"]
[White "Klinova, Masha"]
[Black "Mirzoev, Azer"]
[Result "0-1"]
[ECO "B51"]
[WhiteElo "2269"]
[BlackElo "2474"]
[Annotator "ChessBase"]
[PlyCount "100"]
[EventDate "2019.07.22"]
[EventType "swiss"]
[EventCountry "BEL"]
[SourceTitle "playchess.com"]
[Source "ChessBase"]
[SourceQuality "1"]
[TimeControl "40/5400+30:1800+30"]

1. e4 {[%emt 0:00:00]} c5 {[%emt 0:00:30]} 2. Nf3 {[%emt 0:00:00]} d6 {[%emt 0:00:05]} 3. Bb5+ {[%emt 0:00:00]} Nd7 {[%emt 0:00:42]} 4. O-O {[%emt 0:00:00]} a6 {[%emt 0:00:21]} 5. Bxd7+ {[%emt 0:00:00]} Bxd7 {[%emt 0:00:05]} 6. d4 {[%emt 0:00:04]} cxd4 {[%emt 0:00:14]} 7. Qxd4 {[%emt 0:00:06]} Rc8 {[%emt 0:01:07]} 8. a4 {[%emt 0:01:10]} e5 {[%emt 0:02:06]} 9. Qd3 {[%emt 0:00:44]} Qc7 {[%emt 0:01:07]} 10. Nc3 {[%emt 1:32:56]} Be6 {[%emt 0:00:34]} 11. Rd1 {[%emt 0:00:00]} h6 {[%emt 0:00:38]} 12. Be3 {[%emt 0:00:00]} Nf6 {[%emt 0:01:07]} 13. Nd2 {[%emt 0:00:00]} Be7 {[%emt 0:01:51]} 14. Nf1 {[%emt 0:00:00]} O-O {[%emt 0:00:32]} 15. a5 {[%emt 0:00:00]} Qc6 {[%emt 0:08:25]} 16. f3 {[%emt 0:00:00]} Rfd8 {[%emt 0:08:06]} 17. Bb6 {[%emt 0:00:00]} Rd7 {[%emt 0:00:07]} 18. Ne3 {[%emt 0:00:00]} Re8 {[%emt 0:07:47]} 19. Rd2 {[%emt 0:00:00]} Bd8 {[%emt 0:05:16]} 20. Bxd8 {[%emt 0:00:00]} Rdxd8 {[%emt 0:00:08]} 21. Ncd5 {[%emt 0:00:00]} Nd7 {[%emt 0:05:06]} 22. b4 {[%emt 0:00:00]} Nf8 {[%emt 0:02:13]} 23. Ra3 {[%emt 0:00:00]} Qc8 {[%emt 0:02:22]} 24. Nb6 {[%emt 0:00:00]} Qb8 {[%emt 0:00:52]} 25. c4 {[%emt 0:00:00]} Ng6 {[%emt 0:00:45]} 26. Nf5 {[%emt 0:00:00]} Nf4 {[%emt 0:08:53]} 27. Qe3 {[%emt 0:00:00]} Qc7 {[%emt 0:05:18]} 28. g3 {[%emt 0:00:00]} Nh5 {[%emt 0:00:54]} 29. Nh4 {[%emt 0:00:00]} Nf6 {[%emt 0:05:22]} 30. Rc3 {[%emt 0:00:00]} Qc6 {[%emt 0:07:01]} 31. Ng2 {[%emt 0:00:00]} Nd7 {[%emt 0:02:52]} 32. g4 {[%emt 0:06:06]} Nxb6 {[%emt 0:11:11]} 33. Qxb6 {[%emt 0:00:29]} Qa4 {[%emt 0:00:06]} 34. Kf2 {[%emt 0:00:28]} Rc8 {[%emt 0:02:35]} 35. Ne3 {[%emt 0:01:34]} Qa1 {[%emt 0:00:29]} 36. Rcc2 {[%emt 0:01:15]} Qh1 {[%emt 0:03:21]} 37. Kg3 {[%emt 0:01:04]} Qg1+ {[%emt 0:01:58]} 38. Ng2 {[%emt 0:02:06]} Qxb6 {[%emt 0:00:13]} 39. axb6 {[%emt 0:00:03]} Rc6 {[%emt 0:00:21]} 40. c5 {[%emt 0:01:06]} dxc5 {[%emt 0:00:24]} 41. bxc5 {[%emt 0:30:29]} Rec8 {[%emt 0:30:07]} 42. Ne3 {[%emt 0:00:08]} Kf8 {[%emt 0:00:18]} 43. h4 {[%emt 0:00:00]} Rxc5 {[%emt 0:00:00]} 44. Rxc5 {[%emt 0:00:00]} Rxc5 {[%emt 0:00:00]} 45. Rd8+ {[%emt 0:00:00]} Ke7 {[%emt 0:00:00]} 46. Rb8 {[%emt 0:00:00]} Bc8 {[%emt 0:00:00]} 47. Nd5+ {[%emt 0:00:00]} Kd6 {[%emt 0:00:00]} 48. Nc7 {[%emt 0:00:00]} Rxc7 {[%emt 0:00:00]} 49. bxc7 {[%emt 0:00:00]} Kxc7 {[%emt 0:00:00]} 50. Ra8 {[%emt 0:00:00]} b5 {[%emt 0:00:00]} 0-1

[Event "18th Charleroi Open-A 2019"]
[Site "Charleroi"]
[Date "2019.07.29"]
[Round "3.3"]
[White "Gutenev, Alexander"]
[Black "Capone, Nicola"]
[Result "1-0"]
[ECO "C18"]
[WhiteElo "2470"]
[BlackElo "2297"]
[Annotator "ChessBase"]
[PlyCount "61"]
[EventDate "2019.07.22"]
[EventType "swiss"]
[EventCountry "BEL"]
[SourceTitle "playchess.com"]
[Source "ChessBase"]
[SourceQuality "1"]
[TimeControl "40/5400+30:1800+30"]

1. e4 {[%emt 0:00:13]} e6 {[%emt 0:00:00]} 2. d4 {[%emt 0:00:06]} d5 {[%emt 0:00:00]} 3. Nc3 {[%emt 0:00:06]} Bb4 {[%emt 0:00:00]} 4. e5 {[%emt 0:00:06]} Ne7 {[%emt 0:00:00]} 5. a3 {[%emt 0:00:11]} Bxc3+ {[%emt 0:00:00]} 6. bxc3 {[%emt 0:00:06]} c5 {[%emt 0:00:05]} 7. Qg4 {[%emt 0:00:05]} Qc7 {[%emt 0:00:06]} 8. Bd3 {[%emt 0:01:02]} cxd4 {[%emt 0:00:08]} 9. Ne2 {[%emt 0:00:10]} dxc3 {[%emt 0:00:03]} 10. Qxg7 {[%emt 0:00:18]} Rg8 {[%emt 0:00:05]} 11. Qxh7 {[%emt 0:00:14]} Qxe5 {[%emt 0:00:10]} 12. h4 {[%emt 0:01:29]} Nd7 {[%emt 0:00:06]} 13. Bf4 {[%emt 0:00:06]} Qf6 {[%emt 0:00:04]} 14. Bg5 {[%emt 0:00:06]} Qg7 {[%emt 0:00:03]} 15. Qxg7 {[%emt 0:00:12]} Rxg7 {[%emt 0:00:05]} 16. Nxc3 {[%emt 0:00:09]} a6 {[%emt 0:00:03]} 17. O-O-O {[%emt 0:04:37]} f6 {[%emt 0:00:27]} 18. Bf4 {[%emt 0:00:35]} e5 {[%emt 0:00:30]} 19. Bh6 {[%emt 0:03:33]} Rg8 {[%emt 0:10:48]} 20. h5 {[%emt 0:06:46]} Nb6 {[%emt 0:34:32]} 21. Be3 {[%emt 0:14:26]} d4 {[%emt 0:00:58]} 22. Ne4 {[%emt 0:00:06]} Kf7 {[%emt 0:06:55]} 23. Bd2 {[%emt 0:03:40]} Bf5 {[%emt 0:07:49]} 24. h6 {[%emt 0:09:04]} Ke6 {[%emt 0:11:34]} 25. h7 {[%emt 0:05:28]} Rh8 {[%emt 0:01:48]} 26. Rh6 {[%emt 0:00:09]} Bxe4 {[%emt 0:01:36]} 27. Bxe4 {[%emt 0:00:15]} Nbd5 {[%emt 0:06:02]} 28. g4 {[%emt 0:04:17]} Kf7 {[%emt 0:00:02]} 29. Re1 {[%emt 0:07:07]} Rad8 {[%emt 0:06:28]} 30. Bd3 {[%emt 0:11:52]} Rd6 {[%emt 0:11:45]} 31. Rxe5 {[%emt 0:02:59]} 1-0

[Event "18th Charleroi Open-A 2019"]
[Site "Charleroi"]
[Date "2019.07.29"]
[Round "3.4"]
[White "Faybish, Nimrod"]
[Black "Lugovskoy, Maxim"]
[Result "0-1"]
[ECO "D31"]
[WhiteElo "2220"]
[BlackElo "2425"]
[Annotator "ChessBase"]
[PlyCount "94"]
[EventDate "2019.07.22"]
[EventType "swiss"]
[EventCountry "BEL"]
[SourceTitle "playchess.com"]
[Source "ChessBase"]
[SourceQuality "1"]
[TimeControl "40/5400+30:1800+30"]

1. d4 {[%emt 0:00:00]} d5 {[%emt 0:00:22]} 2. c4 {[%emt 0:00:00]} e6 {[%emt 0:00:04]} 3. Nc3 {[%emt 0:00:00]} a6 {[%emt 0:02:36]} 4. cxd5 {[%emt 0:00:09]} exd5 {[%emt 0:00:05]} 5. Nf3 {[%emt 0:00:18]} c6 {[%emt 0:00:04]} 6. Qc2 {[%emt 0:00:35]} Be7 {[%emt 0:02:41]} 7. Bf4 {[%emt 0:00:50]} Nd7 {[%emt 0:02:26]} 8. e3 {[%emt 0:01:05]} Ngf6 {[%emt 0:01:20]} 9. h3 {[%emt 0:16:01]} O-O {[%emt 0:00:29]} 10. Bd3 {[%emt 0:00:05]} Re8 {[%emt 0:00:02]} 11. O-O {[%emt 0:05:31]} Nf8 {[%emt 0:00:13]} 12. Rab1 {[%emt 0:09:05]} a5 {[%emt 0:06:17]} 13. a3 {[%emt 0:01:06]} Bd6 {[%emt 0:00:39]} 14. Bxd6 {[%emt 0:01:05]} Qxd6 {[%emt 0:00:04]} 15. b4 {[%emt 0:01:48]} axb4 {[%emt 0:00:03]} 16. axb4 {[%emt 0:00:04]} b5 {[%emt 0:00:02]} 17. Ne5 {[%emt 0:02:03]} N6d7 {[%emt 0:00:29]} 18. Nxd7 {[%emt 0:04:40]} Bxd7 {[%emt 0:00:08]} 19. Ne2 {[%emt 0:00:16]} g6 {[%emt 0:01:50]} 20. Nf4 {[%emt 0:05:49]} Ra3 {[%emt 0:02:16]} 21. Rb3 {[%emt 0:02:06]} Rea8 {[%emt 0:00:08]} 22. Rfb1 {[%emt 0:01:30]} Ra2 {[%emt 0:01:35]} 23. R3b2 {[%emt 0:00:20]} R2a3 {[%emt 0:03:00]} 24. Rb3 {[%emt 0:00:24]} R3a6 {[%emt 0:00:04]} 25. Qc5 {[%emt 0:04:24]} Qf6 {[%emt 0:01:16]} 26. Qc3 {[%emt 0:04:22]} Bc8 {[%emt 0:02:13]} 27. Ne2 {[%emt 0:11:39]} Ne6 {[%emt 0:03:06]} 28. Ng3 {[%emt 0:00:28]} h5 {[%emt 0:06:34]} 29. f4 {[%emt 0:04:00]} Ng7 {[%emt 0:00:46]} 30. Re1 {[%emt 0:07:32]} h4 {[%emt 0:00:13]} 31. Nf1 {[%emt 0:00:14]} Ra2 {[%emt 0:02:11]} 32. Bb1 {[%emt 0:01:04]} R2a6 {[%emt 0:01:32]} 33. Nh2 {[%emt 0:00:05]} Nh5 {[%emt 0:02:01]} 34. Ng4 {[%emt 0:06:45]} Bxg4 {[%emt 0:00:13]} 35. hxg4 {[%emt 0:00:03]} Ng3 {[%emt 0:00:07]} 36. g5 {[%emt 0:00:22]} Qe6 {[%emt 0:00:34]} 37. Bc2 {[%emt 0:04:19]} Ra2 {[%emt 0:01:06]} 38. Kh2 {[%emt 0:02:52]} Qg4 {[%emt 0:00:41]} 39. Rb2 {[%emt 0:03:14]} R8a3 {[%emt 0:00:31]} 40. Qxc6 {[%emt 0:00:07]} Ne4 {[%emt 0:00:00]} 41. Rbb1 {[%emt 0:21:05]} h3 {[%emt 0:07:05]} 42. Qe8+ {[%emt 0:02:32]} Kg7 {[%emt 1:23:54]} 43. Qe5+ {[%emt 0:00:03]} Kh7 {[%emt 0:00:00]} 44. Bxe4 {[%emt 0:00:07]} Rxg2+ {[%emt 0:00:00]} 45. Kh1 {[%emt 0:00:12]} dxe4 {[%emt 0:00:00]} 46. Qd5 {[%emt 0:03:04]} Rh2+ {[%emt 0:00:00]} 47. Kxh2 {[%emt 0:00:06]} Qg2# {[%emt 0:00:00]} 0-1

[Event "18th Charleroi Open-A 2019"]
[Site "Charleroi"]
[Date "2019.07.29"]
[Round "3.5"]
[White "Miezis, Normunds"]
[Black "De Waele, Warre"]
[Result "1/2-1/2"]
[ECO "A22"]
[WhiteElo "2495"]
[BlackElo "2225"]
[Annotator "ChessBase"]
[PlyCount "40"]
[EventDate "2019.07.22"]
[EventType "swiss"]
[EventCountry "BEL"]
[SourceTitle "playchess.com"]
[Source "ChessBase"]
[SourceQuality "1"]
[TimeControl "40/5400+30:1800+30"]

1. c4 {[%emt 0:00:00]} Nf6 {[%emt 0:00:00]} 2. Nc3 {[%emt 0:00:00]} e5 {[%emt 0:00:00]} 3. g3 {[%emt 0:00:04]} Bb4 {[%emt 0:00:00]} 4. Bg2 {[%emt 0:00:10]} O-O {[%emt 0:00:24]} 5. e4 {[%emt 0:00:49]} Bxc3 {[%emt 0:00:06]} 6. dxc3 {[%emt 0:00:22]} Na6 {[%emt 0:01:11]} 7. Qe2 {[%emt 0:03:05]} Nc5 {[%emt 0:00:43]} 8. b4 {[%emt 0:01:19]} Na4 {[%emt 0:00:56]} 9. Qc2 {[%emt 0:07:39]} Nb6 {[%emt 0:00:17]} 10. c5 {[%emt 0:01:00]} Nc4 {[%emt 0:00:16]} 11. a4 {[%emt 0:03:08]} d6 {[%emt 0:10:47]} 12. Qe2 {[%emt 0:03:00]} Be6 {[%emt 0:00:16]} 13. Nf3 {[%emt 0:02:32]} h6 {[%emt 0:09:08]} 14. h4 {[%emt 0:13:39]} Qd7 {[%emt 0:24:04]} 15. Ng5 {[%emt 0:02:45]} hxg5 {[%emt 0:01:31]} 16. hxg5 {[%emt 0:00:17]} Ng4 {[%emt 0:00:47]} 17. f3 {[%emt 0:07:40]} dxc5 {[%emt 0:12:36]} 18. fxg4 {[%emt 0:05:48]} Rfd8 {[%emt 0:01:09]} 19. Bf1 {[%emt 0:01:53]} Bxg4 {[%emt 0:01:31]} 20. Qh2 {[%emt 0:04:41]} Qd1+ {[%emt 0:02:24]} 1/2-1/2

[Event "18th Charleroi Open-A 2019"]
[Site "Charleroi"]
[Date "2019.07.29"]
[Round "3.6"]
[White "Gijsen, Stief"]
[Black "Bruno, Ricardo"]
[Result "1-0"]
[ECO "B51"]
[WhiteElo "2227"]
[BlackElo "2007"]
[Annotator "NA"]
[PlyCount "47"]
[EventDate "2019.07.22"]
[EventType "swiss"]
[EventCountry "BEL"]
[SourceTitle "playchess.com"]
[Source "ChessBase"]
[SourceQuality "1"]
[TimeControl "40/5400+30:1800+30"]

1. e4 {[%emt 0:00:00]} c5 {[%emt 0:00:00]} 2. Nf3 {[%emt 0:00:00]} d6 {[%emt 0:00:00]} 3. Bb5+ {[%emt 0:00:00]} Nc6 {[%emt 0:00:38]} 4. O-O {[%emt 0:00:00]} Nf6 {[%emt 0:01:57]} 5. e5 {[%emt 0:01:55]} dxe5 {[%emt 0:00:06]} 6. Nxe5 {[%emt 0:00:04]} Qc7 {[%emt 0:00:30]} 7. Qf3 {[%emt 0:03:19]} Qxe5 {[%emt 0:00:09]} 8. Bxc6+ {[%emt 0:00:05]} Bd7 {[%emt 0:00:06]} 9. Bxd7+ {[%emt 0:00:47]} Nxd7 {[%emt 0:00:07]} 10. Qxb7 {[%emt 0:01:05]} Rb8 {[%emt 0:00:06]} 11. Qxa7 {[%emt 0:01:17]} e6 {[%emt 0:00:07]} 12. Nc3 {[%emt 0:01:43]} Bd6 {[%emt 0:00:53]} 13. g3 {[%emt 0:00:09]} h5 {[%emt 0:05:37]} 14. d3 {[%emt 0:11:33]} h4 {[%emt 0:10:38]} 15. Bf4 {[%emt 0:06:36]} Qd4 {[%emt 0:00:10]} 16. Ne2 {[%emt 0:19:04]} Qd5 {[%emt 0:00:31]} 17. Bxd6 {[%emt 0:00:25]} Qxd6 {[%emt 0:00:12]} 18. d4 {[%emt 0:02:01]} Qc6 {[%emt 0:09:09]} 19. Qa3 {[%emt 0:08:00]} cxd4 {[%emt 0:05:55]} 20. Nxd4 {[%emt 0:01:48]} Qe4 {[%emt 0:04:03]} 21. Rad1 {[%emt 0:03:31]} hxg3 {[%emt 0:04:09]} 22. fxg3 {[%emt 0:00:42]} Qh7 {[%emt 0:03:15]} 23. Rd2 {[%emt 0:05:33]} Rc8 {[%emt 0:00:52]} 24. Qd6 {[%emt 0:32:23]} 1-0

[Event "18th Charleroi Open-A 2019"]
[Site "Charleroi"]
[Date "2019.07.29"]
[Round "3.7"]
[White "Abdullayev, Elshad"]
[Black "Moreels, Yves"]
[Result "1-0"]
[ECO "E18"]
[WhiteElo "2204"]
[BlackElo "2079"]
[Annotator "ChessBase"]
[PlyCount "99"]
[EventDate "2019.07.22"]
[EventType "swiss"]
[EventCountry "BEL"]
[SourceTitle "playchess.com"]
[Source "ChessBase"]
[SourceQuality "1"]
[TimeControl "40/5400+30:1800+30"]

1. d4 {[%emt 0:14:00]} d5 {[%emt 0:00:00]} 2. c4 {[%emt 0:04:10]} e6 {[%emt 0:00:00]} 3. Nf3 {[%emt 0:00:29]} Nf6 {[%emt 0:00:00]} 4. g3 {[%emt 0:00:37]} Be7 {[%emt 0:01:08]} 5. Bg2 {[%emt 0:00:06]} O-O {[%emt 0:00:08]} 6. O-O {[%emt 0:00:05]} b6 {[%emt 0:02:39]} 7. Nc3 {[%emt 0:00:21]} Bb7 {[%emt 0:00:21]} 8. Ne5 {[%emt 0:00:08]} Na6 {[%emt 0:02:10]} 9. Bf4 {[%emt 0:15:43]} c6 {[%emt 0:15:00]} 10. e4 {[%emt 0:04:55]} dxc4 {[%emt 0:10:33]} 11. Nxc4 {[%emt 0:01:06]} b5 {[%emt 0:01:44]} 12. Ne5 {[%emt 0:01:54]} Qb6 {[%emt 0:01:14]} 13. a4 {[%emt 0:26:31]} Rfd8 {[%emt 0:05:45]} 14. Be3 {[%emt 0:02:05]} b4 {[%emt 0:03:52]} 15. Nc4 {[%emt 0:02:43]} Qc7 {[%emt 0:02:39]} 16. Bf4 {[%emt 0:00:57]} Qc8 {[%emt 0:07:51]} 17. e5 {[%emt 0:04:17]} bxc3 {[%emt 0:07:14]} 18. exf6 {[%emt 0:00:05]} Bxf6 {[%emt 0:02:08]} 19. bxc3 {[%emt 0:04:21]} Qd7 {[%emt 0:06:28]} 20. Rb1 {[%emt 0:05:15]} Rac8 {[%emt 0:01:38]} 21. Nd6 {[%emt 0:01:48]} Rc7 {[%emt 0:01:33]} 22. Ne4 {[%emt 0:03:34]} Be7 {[%emt 0:03:49]} 23. Bxc7 {[%emt 0:01:17]} Qxc7 {[%emt 0:00:16]} 24. Qb3 {[%emt 0:02:14]} Bc8 {[%emt 0:03:10]} 25. Qc4 {[%emt 0:01:42]} h6 {[%emt 0:02:26]} 26. Rfd1 {[%emt 0:01:06]} Bf8 {[%emt 0:02:54]} 27. Nd2 {[%emt 0:01:05]} Nb8 {[%emt 0:00:29]} 28. Nf3 {[%emt 0:00:27]} Ba6 {[%emt 0:01:55]} 29. Qa2 {[%emt 0:00:11]} Nd7 {[%emt 0:00:49]} 30. Bf1 {[%emt 0:00:54]} Qa5 {[%emt 0:02:45]} 31. Bxa6 {[%emt 0:00:28]} Qxa6 {[%emt 0:00:02]} 32. Nd2 {[%emt 0:00:52]} Nb6 {[%emt 0:02:29]} 33. a5 {[%emt 0:00:24]} Nd5 {[%emt 0:00:20]} 34. Rdc1 {[%emt 0:00:35]} c5 {[%emt 0:03:24]} 35. dxc5 {[%emt 0:00:30]} Qe2 {[%emt 0:00:52]} 36. Re1 {[%emt 0:00:26]} Qd3 {[%emt 0:00:25]} 37. Ne4 {[%emt 0:00:27]} Qf3 {[%emt 0:03:28]} 38. c4 {[%emt 0:00:34]} Nf6 {[%emt 0:01:40]} 39. Qe2 {[%emt 0:00:20]} Qf5 {[%emt 0:00:37]} 40. Nxf6+ {[%emt 0:00:37]} Qxf6 {[%emt 0:00:02]} 41. c6 {[%emt 0:30:30]} Rc8 {[%emt 0:31:00]} 42. Qe4 {[%emt 0:00:25]} Bc5 {[%emt 0:01:50]} 43. Re2 {[%emt 0:00:06]} e5 {[%emt 0:00:00]} 44. Qxe5 {[%emt 0:00:00]} Bxf2+ {[%emt 0:00:00]} 45. Kg2 {[%emt 0:00:00]} Bd4 {[%emt 0:00:00]} 46. Qxf6 {[%emt 0:00:00]} Bxf6 {[%emt 0:00:00]} 47. Rb7 {[%emt 0:00:00]} Rxc6 {[%emt 0:00:00]} 48. Rxa7 {[%emt 0:00:00]} Rxc4 {[%emt 0:00:00]} 49. Ra2 {[%emt 0:00:00]} Rc8 {[%emt 0:00:00]} 50. a6 {[%emt 0:00:00]} 1-0

[Event "18th Charleroi Open-A 2019"]
[Site "Charleroi"]
[Date "2019.07.29"]
[Round "3.8"]
[White "Godde, Matthias"]
[Black "Verheyen, Olivier"]
[Result "0-1"]
[ECO "D25"]
[WhiteElo "1989"]
[BlackElo "2200"]
[Annotator "ChessBase"]
[PlyCount "118"]
[EventDate "2019.07.22"]
[EventType "swiss"]
[EventCountry "BEL"]
[SourceTitle "playchess.com"]
[Source "ChessBase"]
[SourceQuality "1"]
[TimeControl "40/5400+30:1800+30"]

1. d4 {[%emt 0:00:00]} Nf6 {[%emt 0:00:00]} 2. c4 {[%emt 0:00:00]} c5 {[%emt 0:00:00]} 3. e3 {[%emt 0:01:43]} cxd4 {[%emt 0:01:23]} 4. exd4 {[%emt 0:00:16]} d5 {[%emt 0:00:09]} 5. Nf3 {[%emt 0:10:04]} Bg4 {[%emt 0:07:15]} 6. Qb3 {[%emt 0:05:53]} Nbd7 {[%emt 0:06:59]} 7. Nc3 {[%emt 0:08:13]} Bxf3 {[%emt 0:04:12]} 8. gxf3 {[%emt 0:03:22]} dxc4 {[%emt 0:01:10]} 9. Bxc4 {[%emt 0:00:38]} e6 {[%emt 1:13:22]} 10. Qxb7 {[%emt 0:14:54]} Be7 {[%emt 0:00:00]} 11. Qb3 {[%emt 0:16:47]} O-O {[%emt 0:00:00]} 12. O-O {[%emt 0:03:10]} Rb8 {[%emt 0:00:00]} 13. Qd1 {[%emt 0:03:35]} Nb6 {[%emt 0:00:00]} 14. Bb3 {[%emt 0:00:55]} Nfd5 {[%emt 0:00:00]} 15. Kh1 {[%emt 0:03:20]} Rc8 {[%emt 0:00:00]} 16. Rg1 {[%emt 0:07:01]} Nxc3 {[%emt 0:00:00]} 17. bxc3 {[%emt 0:00:33]} Nd5 {[%emt 0:00:00]} 18. Bh6 {[%emt 0:09:25]} Bf6 {[%emt 0:00:00]} 19. c4 {[%emt 0:04:10]} Ne7 {[%emt 0:00:00]} 20. Bg5 {[%emt 0:02:46]} Nf5 {[%emt 0:00:00]} 21. Bxf6 {[%emt 0:02:13]} Qxf6 {[%emt 0:00:00]} 22. d5 {[%emt 0:01:02]} Rfd8 {[%emt 0:00:00]} 23. f4 {[%emt 0:00:39]} Nd6 {[%emt 0:04:08]} 24. Qg4 {[%emt 0:00:45]} Ne4 {[%emt 0:00:40]} 25. Qg2 {[%emt 0:00:28]} Nc5 {[%emt 0:00:40]} 26. f5 {[%emt 0:00:30]} exf5 {[%emt 0:00:43]} 27. Rac1 {[%emt 0:00:31]} g6 {[%emt 0:00:18]} 28. Qf3 {[%emt 0:00:07]} a5 {[%emt 0:00:50]} 29. Bc2 {[%emt 0:00:26]} Kf8 {[%emt 0:00:25]} 30. Qa3 {[%emt 0:00:44]} Qd4 {[%emt 0:02:46]} 31. Qe3 {[%emt 0:00:39]} Qxe3 {[%emt 0:00:00]} 32. fxe3 {[%emt 0:00:02]} Re8 {[%emt 0:00:00]} 33. Rge1 {[%emt 0:00:16]} Rb8 {[%emt 0:00:03]} 34. Rb1 {[%emt 0:00:21]} Rxb1 {[%emt 0:01:19]} 35. Bxb1 {[%emt 0:00:30]} Ke7 {[%emt 0:00:24]} 36. Kg2 {[%emt 0:01:13]} Kd6 {[%emt 0:00:15]} 37. Kf3 {[%emt 0:00:22]} Rb8 {[%emt 0:01:29]} 38. h4 {[%emt 0:00:29]} Rb2 {[%emt 0:00:00]} 39. h5 {[%emt 0:00:45]} Nd7 {[%emt 0:00:00]} 40. hxg6 {[%emt 0:00:34]} fxg6 {[%emt 0:00:00]} 41. e4 {[%emt 0:04:11]} Ne5+ {[%emt 0:04:27]} 42. Ke3 {[%emt 0:01:10]} Nxc4+ {[%emt 0:01:43]} 43. Kd4 {[%emt 0:00:41]} Ne5 {[%emt 0:02:11]} 44. exf5 {[%emt 0:06:39]} Rb4+ {[%emt 0:09:24]} 45. Kc3 {[%emt 0:00:45]} Kxd5 {[%emt 0:01:06]} 46. fxg6 {[%emt 0:01:46]} hxg6 {[%emt 0:00:02]} 47. Rg1 {[%emt 0:02:26]} g5 {[%emt 0:01:25]} 48. a3 {[%emt 0:01:40]} Rc4+ {[%emt 0:01:32]} 49. Kb2 {[%emt 0:00:02]} Nf3 {[%emt 0:02:49]} 50. Rh1 {[%emt 0:05:05]} Rh4 {[%emt 0:00:24]} 51. Rd1+ {[%emt 0:00:10]} Nd4 {[%emt 0:01:11]} 52. Bg6 {[%emt 0:01:48]} Rh2+ {[%emt 0:01:10]} 53. Kc3 {[%emt 0:00:21]} Rh3+ {[%emt 0:00:08]} 54. Kb2 {[%emt 0:00:28]} g4 {[%emt 0:02:12]} 55. Rg1 {[%emt 0:01:35]} g3 {[%emt 0:01:03]} 56. Be8 {[%emt 0:02:19]} Rh2+ {[%emt 0:01:23]} 57. Kb1 {[%emt 0:00:19]} g2 {[%emt 0:00:35]} 58. Kb2 {[%emt 0:00:43]} Nf3 {[%emt 0:00:31]} 59. Rd1+ {[%emt 0:00:05]} Ke5 {[%emt 0:00:23]} 0-1

[Event "18th Charleroi Open-A 2019"]
[Site "Charleroi"]
[Date "2019.07.29"]
[Round "3.9"]
[White "Hoffmeister, Frank"]
[Black "Verbist, Julien"]
[Result "1-0"]
[ECO "D10"]
[WhiteElo "2187"]
[BlackElo "1974"]
[Annotator "NA"]
[PlyCount "45"]
[EventDate "2019.07.22"]
[EventType "swiss"]
[EventCountry "BEL"]
[SourceTitle "playchess.com"]
[Source "ChessBase"]
[SourceQuality "1"]
[TimeControl "40/5400+30:1800+30"]

1. d4 {[%emt 1:30:30]} d5 {[%emt 1:30:30]} 2. c4 {[%emt 0:00:30]} c6 {[%emt 0:00:30]} 3. cxd5 {[%emt 0:00:30]} cxd5 {[%emt 0:00:30]} 4. Nc3 {[%emt 0:00:30]} Nc6 {[%emt 0:00:30]} 5. e4 {[%emt 0:00:30]} Nf6 {[%emt 0:00:30]} 6. e5 {[%emt 0:00:30]} Ng8 {[%emt 0:00:30]} 7. Be3 {[%emt 0:00:30]} e6 {[%emt 0:00:30]} 8. Bd3 {[%emt 0:00:30]} Be7 {[%emt 0:00:30]} 9. Qg4 {[%emt 0:00:30]} g6 {[%emt 0:00:30]} 10. Nf3 {[%emt 0:00:30]} f5 {[%emt 0:00:30]} 11. Qg3 Kf7 {[%emt 0:00:30]} 12. h4 {[%emt 0:01:00]} h6 {[%emt 0:00:30]} 13. O-O {[%emt 0:00:30]} Rh7 {[%emt 0:00:30]} 14. Qh3 {[%emt 0:00:30]} Rg7 {[%emt 0:00:30]} 15. g4 {[%emt 0:00:30]} Bd7 {[%emt 0:00:30]} 16. Kh1 {[%emt 0:00:30]} h5 {[%emt 0:00:30]} 17. gxh5 {[%emt 0:00:30]} gxh5 {[%emt 0:00:30]} 18. Ng5+ {[%emt 0:00:30]} Bxg5 {[%emt 0:00:30]} 19. hxg5 {[%emt 0:00:30]} Kg6 {[%emt 0:00:30]} 20. Ne2 {[%emt 0:00:30]} Rh7 {[%emt 0:00:30]} 21. Nf4+ {[%emt 0:00:30]} Kg7 {[%emt 0:00:30]} 22. g6 {[%emt 0:00:30]} Rh8 {[%emt 0:00:30]} 23. Nxh5+ {[%emt 0:00:30]} 1-0

[Event "18th Charleroi Open-A 2019"]
[Site "Charleroi"]
[Date "2019.07.29"]
[Round "3.10"]
[White "Godry, Clement"]
[Black "Decrop, Benjamin"]
[Result "1-0"]
[ECO "A18"]
[WhiteElo "1962"]
[BlackElo "2183"]
[Annotator "ChessBase"]
[PlyCount "91"]
[EventDate "2019.07.22"]
[EventType "swiss"]
[EventCountry "BEL"]
[SourceTitle "playchess.com"]
[Source "ChessBase"]
[SourceQuality "1"]
[TimeControl "40/5400+30:1800+30"]

1. c4 {[%emt 0:00:00]} e6 {[%emt 0:00:00]} 2. Nc3 {[%emt 0:00:00]} Nf6 {[%emt 0:00:00]} 3. e4 {[%emt 0:00:00]} d5 {[%emt 0:00:00]} 4. e5 {[%emt 0:00:00]} d4 {[%emt 0:00:00]} 5. exf6 {[%emt 0:00:02]} dxc3 {[%emt 0:00:00]} 6. bxc3 {[%emt 0:00:11]} Qxf6 {[%emt 0:00:03]} 7. d4 {[%emt 0:00:10]} b6 {[%emt 0:00:13]} 8. Be2 {[%emt 0:02:14]} Bb7 {[%emt 0:00:09]} 9. Bf3 {[%emt 0:00:48]} Bxf3 {[%emt 0:00:05]} 10. Nxf3 {[%emt 0:00:10]} Bd6 {[%emt 0:00:27]} 11. O-O {[%emt 0:00:33]} O-O {[%emt 0:00:51]} 12. Qd3 {[%emt 0:04:12]} h6 {[%emt 0:07:49]} 13. Qe4 {[%emt 0:05:19]} Nd7 {[%emt 0:01:23]} 14. a4 {[%emt 0:00:57]} Qe7 {[%emt 0:23:03]} 15. Bd2 {[%emt 1:22:54]} c5 {[%emt 0:09:03]} 16. a5 {[%emt 0:00:00]} Rac8 {[%emt 0:03:06]} 17. Rfc1 {[%emt 0:00:00]} Rc7 {[%emt 0:04:38]} 18. axb6 {[%emt 0:00:00]} Nxb6 {[%emt 0:00:36]} 19. Qd3 {[%emt 0:00:00]} Rfc8 {[%emt 0:00:58]} 20. d5 {[%emt 0:00:00]} exd5 {[%emt 0:01:15]} 21. cxd5 {[%emt 0:00:00]} c4 {[%emt 0:00:05]} 22. Qf5 {[%emt 0:00:00]} Qd7 {[%emt 0:02:38]} 23. Qxd7 {[%emt 0:00:00]} Rxd7 {[%emt 0:00:38]} 24. Be3 {[%emt 0:00:00]} Bc5 {[%emt 0:04:19]} 25. Bxc5 {[%emt 0:00:00]} Rxc5 {[%emt 0:00:05]} 26. d6 {[%emt 0:00:00]} Rd5 {[%emt 0:03:37]} 27. Nd4 {[%emt 0:00:00]} R5xd6 {[%emt 0:02:33]} 28. Nb5 {[%emt 0:00:00]} Rd2 {[%emt 0:04:36]} 29. Nxa7 {[%emt 0:00:00]} Rb2 {[%emt 0:08:19]} 30. Nc6 {[%emt 0:00:00]} Rdd2 {[%emt 0:00:12]} 31. Rf1 {[%emt 0:00:00]} Rbc2 {[%emt 0:04:22]} 32. Ra3 {[%emt 0:00:00]} Nd5 {[%emt 0:01:36]} 33. Ne5 {[%emt 0:00:00]} Nxc3 {[%emt 0:00:28]} 34. Ra8+ {[%emt 0:00:00]} Kh7 {[%emt 0:00:03]} 35. Nxf7 {[%emt 0:00:00]} Ne4 {[%emt 0:03:44]} 36. Rh8+ {[%emt 0:00:00]} Kg6 {[%emt 0:00:11]} 37. Rf8 {[%emt 0:00:00]} c3 {[%emt 0:03:22]} 38. h4 {[%emt 0:00:00]} Ng3 {[%emt 0:04:24]} 39. Re1 {[%emt 0:00:00]} Rc1 {[%emt 0:00:33]} 40. Ne5+ {[%emt 0:12:30]} Kh7 {[%emt 0:04:50]} 41. Rxc1 {[%emt 0:30:30]} Ne2+ {[%emt 0:30:04]} 42. Kh2 {[%emt 0:00:00]} Nxc1 {[%emt 0:00:04]} 43. h5 {[%emt 0:00:00]} g5 {[%emt 0:00:54]} 44. hxg6+ {[%emt 0:00:00]} Kg7 {[%emt 0:00:05]} 45. Rf7+ {[%emt 0:00:00]} Kh8 {[%emt 0:00:58]} 46. Ng4 {[%emt 0:00:00]} 1-0